fUST/lending_fUST_20250531
["ID","MTS","AMOUNT","RATE_DAILY","PERIOD"]
[363325284,1748675452437,-160.0,0.00021995,5]
[363325285,1748675452446,-3772.98,0.00021997,2]
[363325286,1748675452456,-164.021384,0.00021999,7]
[363325287,1748675452466,-164.021384,0.00021999,7]
[363325288,1748675452475,-46616.69550196,0.00022,7]
[363325289,1748675452484,-2000.0,0.00022,2]
[363325290,1748675452493,-273.0,0.00022,2]
[363325291,1748675452505,-9957.42371822,0.00022,2]
[363325292,1748675452783,-10102.90176702,0.00022,2]
[363325293,1748675452795,-17374.25602559,0.00022,2]
[363325294,1748675453093,-430.0,0.00016438,2]
[363325295,1748675453103,-430.0,0.00016438,2]
[363325296,1748675453113,-430.0,0.00016438,2]
[363325297,1748675453122,-430.0,0.00016438,2]
[363325298,1748675453131,-273.3,0.00016712,2]
[363325299,1748675453141,-430.0,0.00016712,2]
[363325300,1748675453151,-430.0,0.00016986,2]
[363325301,1748675453160,-430.0,0.0001726,2]
[363325302,1748675453170,-430.0,0.00017535,2]
[363325303,1748675453179,-500.0,0.00022,8]
[363325304,1748675453190,-2398.62345099,0.00022,2]
[363325305,1748675453205,-17279.0573774,0.00022,2]
[363325306,1748675453215,-2000.0,0.00022,2]
[363325307,1748675453224,-934.14,0.00022,7]
[363325308,1748675453235,-206.0,0.00022,2]
[363325309,1748675453245,-2000.0,0.00022,2]
[363325310,1748675453255,-2000.0,0.00022,2]
[363325311,1748675453264,-4103.45,0.00022,7]
[363325312,1748675453274,-151.0,0.00022,7]
[363325313,1748675453283,-273.0,0.00022,2]
[363325314,1748675453293,-160.56326687,0.00022,7]
[363325315,1748675453302,-8492.1054259,0.00022,2]
[363325318,1748675569260,-197.9765116,0.00015575,2]
[363325319,1748675569281,-5984.0234884,0.00016123,2]
[363325323,1748675641248,-430.0,0.00015506,2]
[363325326,1748675828150,719.9579027,0.00024657,120]
[363325901,1748676167260,1075.6413707,0.00013825,2]
[363325966,1748676172091,161.615473,0.00013699,2]
[363326877,1748676262819,-164.36271843,0.00014419,2]
[363326879,1748676264812,-159.02402088,0.00014419,2]
[363326880,1748676269898,-191.89801977,0.00014419,2]
[363326881,1748676271499,-175.77452025,0.00014419,2]
[363326882,1748676273547,-182.41261038,0.00014419,2]
[363326883,1748676279571,-353.13267781,0.00014419,2]
[363326884,1748676281217,-188.11901069,0.00014419,2]
[363326885,1748676285066,-311.77017236,0.00014419,2]
[363326886,1748676286643,-154.48612629,0.00014419,2]
[363326887,1748676288609,-242.96843892,0.00014419,2]
[363326888,1748676290086,-279.969293,0.00014419,2]
[363326889,1748676292969,-262.29171518,0.00014419,2]
[363326890,1748676294975,-167.50929621,0.00014419,2]
[363326891,1748676296542,-214.5075675,0.00014419,2]
[363326892,1748676298033,-261.26600596,0.00014419,2]
[363326893,1748676302825,-155.25152251,0.00014419,2]
[363326894,1748676306731,-205.46166963,0.00014419,2]
[363326895,1748676310429,-177.38913363,0.00014419,2]
[363326896,1748676313608,-198.02,0.00014419,2]
[363326897,1748676318637,-160.10982047,0.00014419,2]
[363326898,1748676320680,-154.53,0.00014419,2]
[363326899,1748676325912,-153.10776738,0.00014419,2]
[363326910,1748676328777,-227.76910201,0.00014419,2]
[363327006,1748676334503,-155.30352364,0.00014419,2]
[363327043,1748676336497,-103.5652671,0.00014419,2]
[363327226,1748676368175,164166.91880664,0.00014,2]
[363327227,1748676370884,2000.0,0.00013823,2]
[363327228,1748676389937,9737.0426222,0.00013934,2]
[363327229,1748676428102,-2777.95415759,0.00014565,2]
[363327230,1748676430127,-415.1891098,0.00014565,2]
[363327231,1748676430580,603.6436589,0.00013822,2]
[363327232,1748676443098,-364.06740625,0.00014565,2]
[363327233,1748676443128,-1442.78932636,0.00014565,2]
[363327234,1748676443153,-200.448325,0.00014712,2]
[363327235,1748676443176,-151.59258653,0.00014726,2]
[363327236,1748676443198,-300.0,0.00014821,2]
[363327237,1748676443221,-73.83180694,0.00014821,2]
[363327238,1748676443252,-226.16819306,0.00014821,2]
[363327239,1748676443274,-300.0,0.00014822,2]
[363327240,1748676443295,-300.0,0.00014822,2]
[363327241,1748676443317,-300.0,0.00014822,2]
[363327242,1748676443340,-762.61971623,0.00014822,2]
[363327244,1748676447137,-437.38028377,0.00014822,2]
[363327245,1748676447165,-455.24728689,0.00014823,2]
[363327246,1748676447192,-500.0,0.00014823,2]
[363327247,1748676447218,-500.0,0.00014823,2]
[363327248,1748676447244,-500.0,0.00014823,2]
[363327249,1748676447270,-218.96419599,0.00014823,2]
[363327250,1748676447297,-637.70358258,0.00014823,2]
[363327251,1748676449104,-260.96925892,0.00014674,2]
[363327253,1748676548161,-4739.03074108,0.00014674,2]
[363327254,1748676548186,-300.0,0.00014821,2]
[363327255,1748676548210,-500.0,0.00014822,2]
[363327256,1748676548235,-500.0,0.00014822,2]
[363327257,1748676548260,-500.0,0.00014822,2]
[363327258,1748676548286,-500.0,0.00014822,2]
[363327259,1748676548310,-500.0,0.00014822,2]
[363327260,1748676548334,-500.0,0.00014822,2]
[363327261,1748676548358,-182.65660933,0.00014822,2]
[363327262,1748676548384,-615.78597286,0.00014822,2]
[363327263,1748676548410,-500.0,0.00014822,2]
[363327264,1748676548435,-500.0,0.00014822,2]
[363327265,1748676548457,-21684.30677199,0.00014823,2]
[363327266,1748676548480,-500.0,0.00014825,2]
[363327267,1748676548507,-500.0,0.00014825,2]
[363327268,1748676548534,-500.0,0.00014825,2]
[363327269,1748676548557,-363.54978484,0.00014825,2]
[363327270,1748676548582,-500.0,0.00014825,2]
[363327271,1748676548608,-500.0,0.00014825,2]
[363327272,1748676548634,-500.0,0.00014825,2]
[363327273,1748676548659,-500.0,0.00014825,2]
[363327274,1748676548686,-500.0,0.00014825,2]
[363327275,1748676548711,-500.0,0.00014825,2]
[363327276,1748676548737,-500.0,0.00014825,2]
[363327277,1748676548762,-500.0,0.00014825,2]
[363327278,1748676548789,-352.8839707,0.00014825,2]
[363327279,1748676548816,-500.0,0.00014825,2]
[363327280,1748676548841,-500.0,0.00014825,2]
[363327281,1748676548867,-500.0,0.00014825,2]
[363327282,1748676548893,-500.0,0.00014825,2]
[363327283,1748676548918,-450.0,0.00014825,2]
[363327284,1748676548941,-24900.0,0.00014826,2]
[363327285,1748676548963,-1000.0,0.00014996,2]
[363327286,1748676548985,-1000.0,0.00014997,2]
[363327287,1748676549007,-1000.0,0.00014997,2]
[363327288,1748676549027,-184.1274669,0.00015255,2]
[363327289,1748676549049,-14696.9542538,0.00015506,2]
[363327290,1748676549070,-1000.0,0.00015999,2]
[363327291,1748676549096,-1000.0,0.00015999,2]
[363327292,1748676549119,-858.06104678,0.00015999,2]
[363327293,1748676558116,-2897.00399221,0.00014527,2]
[363327294,1748676558138,-141.93895322,0.00015999,2]
[363327295,1748676558160,-1000.0,0.00015999,2]
[363327296,1748676558182,-4015.9765116,0.00016123,2]
[363327297,1748676558204,-420.0,0.00016223,2]
[363327298,1748676558227,-420.0,0.00016224,2]
[363327299,1748676558251,-987.0,0.00016304,2]
[363327300,1748676558273,-304.76580017,0.00016338,2]
[363327301,1748676558294,-400.0,0.00016438,2]
[363327302,1748676558315,-323.82395403,0.00016438,2]
[363327303,1748676558337,-407.09099752,0.00016438,2]
[363327304,1748676558358,-182.56449853,0.00016438,2]
[363327305,1748676558379,-368.1015585,0.00016438,2]
[363327306,1748676558411,-420.0,0.00016438,2]
[363327307,1748676558439,-430.0,0.00016438,2]
[363327308,1748676558461,-403.30789202,0.00016438,2]
[363327309,1748676558483,-435.08249657,0.00016438,2]
[363327310,1748676558506,-431.04514393,0.00016438,2]
[363327311,1748676558529,-430.0,0.00016438,2]
[363327312,1748676558551,-406.17873588,0.00016438,2]
[363327313,1748676558573,-430.0,0.00016438,2]
[363327314,1748676558596,-430.0,0.00016438,2]
[363327315,1748676558619,-411.31030501,0.00016438,2]
[363327316,1748676558643,-430.0,0.00016438,2]
[363327317,1748676558668,-438.6150415,0.00016438,2]
[363327318,1748676558691,-170.35409438,0.00016438,2]
[363327319,1748676558713,-159.15208801,0.00016438,2]
[363327320,1748676558736,-430.0,0.00016438,2]
[363327321,1748676558760,-430.0,0.00016438,2]
[363327322,1748676558783,-557.93213054,0.00016438,2]
[363327323,1748676558807,-491.75400907,0.00016438,2]
[363327324,1748676558829,-450.04937114,0.00016438,2]
[363327325,1748676558852,-430.0,0.00016438,2]
[363327326,1748676558875,-119.30756607,0.00016438,2]
[363327327,1748676561417,-151.59258653,0.00014725,2]
[363327328,1748676561467,-310.69243393,0.00016438,2]
[363327329,1748676561512,-214.07483374,0.00016438,2]
[363327330,1748676561556,-430.0,0.00016438,2]
[363327331,1748676561602,-430.0,0.00016438,2]
[363327332,1748676561647,-430.9042804,0.00016438,2]
[363327333,1748676561692,-430.0,0.00016438,2]
[363327334,1748676561738,-430.0,0.00016438,2]
[363327335,1748676561784,-430.0,0.00016438,2]
[363327336,1748676561830,-430.0,0.00016438,2]
[363327337,1748676561874,-430.0,0.00016438,2]
[363327338,1748676561920,-430.0,0.00016438,2]
[363327339,1748676561964,-430.0,0.00016438,2]
[363327340,1748676562009,-430.0,0.00016438,2]
[363327341,1748676562057,-430.0,0.00016438,2]
[363327342,1748676562105,-430.0,0.00016438,2]
[363327343,1748676562153,-430.0,0.00016438,2]
[363327344,1748676562200,-400.5307793,0.00016438,2]
[363327345,1748676562245,-430.0,0.00016438,2]
[363327346,1748676562291,-430.0,0.00016438,2]
[363327347,1748676562334,-430.0,0.00016438,2]
[363327348,1748676562378,-430.0,0.00016438,2]
[363327349,1748676562421,-430.0,0.00016438,2]
[363327350,1748676562466,-430.0,0.00016438,2]
[363327351,1748676562513,-430.0,0.00016438,2]
[363327352,1748676562733,-430.0,0.00016438,2]
[363327353,1748676562784,-430.0,0.00016438,2]
[363327354,1748676562830,-430.0,0.00016438,2]
[363327355,1748676562880,-430.0,0.00016438,2]
[363327356,1748676562924,-430.0,0.00016438,2]
[363327357,1748676562970,-430.0,0.00016438,2]
[363327358,1748676563014,-400.97919004,0.00016438,2]
[363327359,1748676563056,-430.0,0.00016438,2]
[363327360,1748676563101,-430.0,0.00016438,2]
[363327361,1748676563145,-430.0,0.00016438,2]
[363327362,1748676563197,-430.0,0.00016438,2]
[363327363,1748676563241,-430.0,0.00016438,2]
[363327364,1748676563286,-430.0,0.00016438,2]
[363327365,1748676563333,-430.0,0.00016438,2]
[363327366,1748676563379,-430.0,0.00016438,2]
[363327367,1748676563434,-430.0,0.00016438,2]
[363327368,1748676563484,-430.0,0.00016438,2]
[363327369,1748676563530,-430.0,0.00016438,2]
[363327370,1748676563578,-430.0,0.00016438,2]
[363327371,1748676563623,-192.86084402,0.00016438,2]
[363327372,1748676563670,-430.0,0.00016438,2]
[363327373,1748676563715,-430.0,0.00016438,2]
[363327374,1748676563761,-188.0,0.00016438,2]
[363327375,1748676563807,-382.86160078,0.00016438,2]
[363327376,1748676563851,-430.0,0.00016438,2]
[363327377,1748676563897,-430.0,0.00016438,2]
[363327378,1748676563944,-430.0,0.00016438,2]
[363327379,1748676563991,-430.0,0.00016438,2]
[363327380,1748676564039,-430.0,0.00016438,2]
[363327381,1748676564086,-430.0,0.00016438,2]
[363327382,1748676564132,-430.0,0.00016438,2]
[363327383,1748676564178,-430.0,0.00016438,2]
[363327384,1748676564222,-430.0,0.00016438,2]
[363327385,1748676564267,-430.0,0.00016438,2]
[363327386,1748676564313,-430.0,0.00016438,2]
[363327387,1748676564361,-430.0,0.00016438,2]
[363327388,1748676564406,-430.0,0.00016438,2]
[363327389,1748676564451,-430.0,0.00016438,2]
[363327390,1748676564499,-430.0,0.00016438,2]
[363327391,1748676564547,-430.0,0.00016438,2]
[363327392,1748676564595,-430.0,0.00016438,2]
[363327393,1748676564645,-430.0,0.00016438,2]
[363327394,1748676564692,-430.0,0.00016438,2]
[363327395,1748676564741,-430.6098884,0.00016438,2]
[363327396,1748676564788,-430.0,0.00016438,2]
[363327397,1748676564833,-431.42875295,0.00016438,2]
[363327398,1748676564878,-430.0,0.00016438,2]
[363327399,1748676564923,-430.0,0.00016438,2]
[363327400,1748676564971,-430.0,0.00016438,2]
[363327401,1748676565018,-430.0,0.00016438,2]
[363327402,1748676565069,-430.0,0.00016438,2]
[363327403,1748676565122,-434.83458103,0.00016438,2]
[363327404,1748676565165,-430.0,0.00016438,2]
[363327405,1748676565210,-430.0,0.00016438,2]
[363327406,1748676565255,-430.0,0.00016438,2]
[363327407,1748676565297,-495.01536474,0.00016438,2]
[363327408,1748676565348,-430.0,0.00016438,2]
[363327409,1748676565391,-430.0,0.00016438,2]
[363327410,1748676565438,-430.0,0.00016438,2]
[363327411,1748676565484,-430.0,0.00016438,2]
[363327412,1748676565529,-348.66857277,0.00016438,2]
[363327413,1748676565575,-430.0,0.00016438,2]
[363327414,1748676565619,-430.0,0.00016438,2]
[363327415,1748676565664,-430.0,0.00016438,2]
[363327416,1748676565707,-430.0,0.00016438,2]
[363327417,1748676565753,-401.21415758,0.00016438,2]
[363327418,1748676565799,-430.0,0.00016438,2]
[363327419,1748676565844,-430.0,0.00016438,2]
[363327420,1748676565891,-475.18471669,0.00016438,2]
[363327421,1748676565937,-430.0,0.00016438,2]
[363327422,1748676565983,-432.72885539,0.00016438,2]
[363327423,1748676566028,-429.94939126,0.00016438,2]
[363327424,1748676566074,-430.0,0.00016438,2]
[363327425,1748676566124,-430.0,0.00016438,2]
[363327426,1748676566173,-343.46592307,0.00016438,2]
[363327427,1748676566220,-430.0,0.00016438,2]
[363327428,1748676566268,-430.0,0.00016438,2]
[363327429,1748676566315,-430.0,0.00016438,2]
[363327430,1748676566362,-430.0,0.00016438,2]
[363327431,1748676566409,-430.0,0.00016438,2]
[363327432,1748676566455,-430.0,0.00016438,2]
[363327433,1748676566501,-430.0,0.00016438,2]
[363327434,1748676566546,-430.0,0.00016438,2]
[363327435,1748676566593,-430.0,0.00016438,2]
[363327436,1748676566638,-246.01438803,0.00016438,2]
[363327437,1748676566683,-500.0,0.00016438,2]
[363327438,1748676566728,-430.0,0.00016438,2]
[363327439,1748676566774,-400.0,0.00016438,2]
[363327440,1748676566819,-507.52922009,0.00016438,2]
[363327441,1748676566868,-430.0,0.00016438,2]
[363327442,1748676566913,-449.12365192,0.00016438,2]
[363327443,1748676566959,-430.0,0.00016438,2]
[363327444,1748676567004,-430.0,0.00016438,2]
[363327445,1748676567058,-430.0,0.00016438,2]
[363327446,1748676567103,-430.0,0.00016438,2]
[363327447,1748676567150,-430.0,0.00016438,2]
[363327448,1748676567198,-430.0,0.00016438,2]
[363327449,1748676567245,-369.55818577,0.00016438,2]
[363327450,1748676567291,-474.12046204,0.00016438,2]
[363327451,1748676567337,-435.60790859,0.00016438,2]
[363327452,1748676567386,-456.65616903,0.00016438,2]
[363327453,1748676567435,-430.0,0.00016438,2]
[363327454,1748676567483,-430.0,0.00016438,2]
[363327455,1748676567531,-510.0,0.00016438,2]
[363327456,1748676567580,-430.0,0.00016438,2]
[363327457,1748676567629,-430.0,0.00016438,2]
[363327458,1748676567676,-430.0,0.00016438,2]
[363327459,1748676567722,-430.0,0.00016438,2]
[363327460,1748676567770,-541.10981437,0.00016438,2]
[363327461,1748676567816,-430.0,0.00016438,2]
[363327462,1748676567863,-430.0,0.00016438,2]
[363327463,1748676567910,-430.0,0.00016438,2]
[363327464,1748676567954,-509.63001651,0.00016438,2]
[363327465,1748676567998,-437.16,0.00016438,2]
[363327466,1748676568043,-430.0,0.00016438,2]
[363327467,1748676568087,-430.0,0.00016438,2]
[363327468,1748676568132,-430.0,0.00016438,2]
[363327469,1748676568178,-430.0,0.00016438,2]
[363327470,1748676568223,-430.0,0.00016438,2]
[363327471,1748676568266,-184.66908706,0.00016438,2]
[363327472,1748676568310,-430.0,0.00016438,2]
[363327473,1748676568355,-430.0,0.00016438,2]
[363327474,1748676568401,-430.0,0.00016438,2]
[363327475,1748676568447,-430.0,0.00016438,2]
[363327476,1748676568495,-430.0,0.00016438,2]
[363327477,1748676568542,-475.58,0.00016438,2]
[363327478,1748676568587,-430.0,0.00016438,2]
[363327479,1748676568634,-430.0,0.00016438,2]
[363327480,1748676568678,-430.0,0.00016438,2]
[363327481,1748676568725,-385.74013933,0.00016438,2]
[363327482,1748676568773,-430.0,0.00016438,2]
[363327483,1748676568818,-430.0,0.00016438,2]
[363327484,1748676568865,-500.0,0.00016438,2]
[363327485,1748676568911,-500.0,0.00016438,2]
[363327486,1748676568955,-426.67060066,0.00016438,2]
[363327487,1748676569001,-430.0,0.00016438,2]
[363327488,1748676569044,-430.0,0.00016438,2]
[363327489,1748676569088,-430.0,0.00016438,2]
[363327490,1748676569134,-430.0,0.00016438,2]
[363327491,1748676569178,-430.0,0.00016438,2]
[363327492,1748676569225,-1118.93,0.00016438,2]
[363327493,1748676569270,-434.5375836,0.00016438,2]
[363327494,1748676569314,-430.0,0.00016438,2]
[363327495,1748676569506,-430.0,0.00016438,2]
[363327496,1748676569557,-430.0,0.00016438,2]
[363327497,1748676569606,-430.0,0.00016438,2]
[363327498,1748676569656,-430.0,0.00016438,2]
[363327499,1748676569703,-430.0,0.00016438,2]
[363327500,1748676569751,-312.4154369,0.00016438,2]
[363327501,1748676569796,-430.0,0.00016438,2]
[363327502,1748676569842,-430.0,0.00016438,2]
[363327503,1748676569890,-430.0,0.00016438,2]
[363327504,1748676569936,-430.0,0.00016438,2]
[363327505,1748676569981,-430.0,0.00016438,2]
[363327506,1748676570026,-430.0,0.00016438,2]
[363327507,1748676570072,-575.05,0.00016438,2]
[363327508,1748676570120,-430.0,0.00016438,2]
[363327509,1748676570166,-434.93979533,0.00016438,2]
[363327510,1748676570214,-430.0,0.00016438,2]
[363327511,1748676570262,-430.0,0.00016438,2]
[363327512,1748676570309,-430.0,0.00016438,2]
[363327513,1748676570357,-500.0,0.00016438,2]
[363327514,1748676570406,-500.0,0.00016438,2]
[363327515,1748676570452,-430.0,0.00016438,2]
[363327516,1748676570501,-529.04,0.00016438,2]
[363327517,1748676570547,-431.3834317,0.00016438,2]
[363327518,1748676570595,-430.0,0.00016438,2]
[363327519,1748676570643,-430.0,0.00016438,2]
[363327520,1748676570689,-430.64760257,0.00016438,2]
[363327521,1748676570737,-430.0,0.00016438,2]
[363327522,1748676570785,-430.0,0.00016438,2]
[363327523,1748676570830,-156.6749334,0.00016438,2]
[363327524,1748676570878,-372.23046982,0.00016438,2]
[363327525,1748676570926,-430.0,0.00016438,2]
[363327526,1748676570974,-430.0,0.00016438,2]
[363327527,1748676571023,-430.0,0.00016438,2]
[363327528,1748676571068,-430.0,0.00016438,2]
[363327529,1748676571117,-430.0,0.00016438,2]
[363327530,1748676571165,-430.0,0.00016438,2]
[363327531,1748676571215,-1495.71,0.00016438,2]
[363327532,1748676571262,-430.0,0.00016438,2]
[363327533,1748676571311,-430.0,0.00016438,2]
[363327534,1748676571358,-430.0,0.00016438,2]
[363327535,1748676571405,-430.0,0.00016438,2]
[363327536,1748676571451,-430.0,0.00016438,2]
[363327537,1748676571499,-430.0,0.00016438,2]
[363327538,1748676571549,-430.0,0.00016438,2]
[363327539,1748676571593,-430.0,0.00016438,2]
[363327540,1748676571640,-618.07,0.00016438,2]
[363327541,1748676571692,-699.2,0.00016438,2]
[363327542,1748676571742,-430.0,0.00016438,2]
[363327543,1748676571793,-430.0,0.00016438,2]
[363327544,1748676571841,-430.0,0.00016438,2]
[363327545,1748676571889,-1237.53,0.00016438,2]
[363327546,1748676571937,-497.02108708,0.00016438,2]
[363327547,1748676571986,-430.0,0.00016438,2]
[363327548,1748676572033,-430.0,0.00016438,2]
[363327549,1748676572084,-430.0,0.00016438,2]
[363327550,1748676572145,-430.0,0.00016438,2]
[363327551,1748676572195,-1471.72,0.00016438,2]
[363327553,1748676572242,-430.0,0.00016438,2]
[363327556,1748676572292,-430.0,0.00016438,2]
[363327559,1748676572340,-430.0,0.00016438,2]
[363327561,1748676572390,-430.0,0.00016438,2]
[363327563,1748676572437,-353.00498114,0.00016438,2]
[363327564,1748676572485,-473.97277735,0.00016438,2]
[363327565,1748676572537,-430.0,0.00016438,2]
[363327566,1748676572584,-430.0,0.00016438,2]
[363327567,1748676572631,-412.05553249,0.00016438,2]
[363327568,1748676572682,-1692.96,0.00016438,2]
[363327569,1748676572731,-430.0,0.00016438,2]
[363327570,1748676572775,-430.84821731,0.00016438,2]
[363327571,1748676572825,-430.0,0.00016438,2]
[363327572,1748676572870,-430.0,0.00016438,2]
[363327573,1748676572918,-430.0,0.00016438,2]
[363327574,1748676572965,-430.0,0.00016438,2]
[363327575,1748676573013,-280.43864885,0.00016438,2]
[363327576,1748676573060,-332.63020343,0.00016438,2]
[363327577,1748676573108,-500.0,0.00016438,2]
[363327578,1748676573164,-210.86174846,0.00016438,2]
[363327579,1748676573211,-500.0,0.00016438,2]
[363327580,1748676573260,-500.0,0.00016438,2]
[363327581,1748676573306,-500.0,0.00016438,2]
[363327582,1748676573355,-430.0,0.00016438,2]
[363327583,1748676573404,-430.0,0.00016438,2]
[363327584,1748676573453,-447.84258888,0.00016438,2]
[363327585,1748676573507,-430.0,0.00016438,2]
[363327586,1748676573556,-430.0,0.00016438,2]
[363327587,1748676573603,-430.0,0.00016438,2]
[363327588,1748676573650,-430.0,0.00016438,2]
[363327589,1748676573695,-430.0,0.00016438,2]
[363327590,1748676573742,-430.0,0.00016438,2]
[363327591,1748676573790,-430.0,0.00016438,2]
[363327592,1748676573840,-1014.98,0.00016438,2]
[363327593,1748676573889,-430.0,0.00016438,2]
[363327594,1748676573938,-430.0,0.00016438,2]
[363327595,1748676573987,-385.04879985,0.00016438,2]
[363327596,1748676574041,-430.0,0.00016438,2]
[363327597,1748676574088,-430.0,0.00016438,2]
[363327598,1748676574140,-430.0,0.00016438,2]
[363327599,1748676574190,-430.0,0.00016438,2]
[363327600,1748676574238,-430.0,0.00016438,2]
[363327601,1748676574286,-430.0,0.00016438,2]
[363327602,1748676574335,-602.09,0.00016438,2]
[363327603,1748676574383,-1240.81,0.00016438,2]
[363327604,1748676574428,-430.0,0.00016438,2]
[363327605,1748676574475,-430.0,0.00016438,2]
[363327606,1748676574520,-430.0,0.00016438,2]
[363327607,1748676574568,-430.0,0.00016438,2]
[363327608,1748676574614,-430.0,0.00016438,2]
[363327609,1748676574662,-430.0,0.00016438,2]
[363327610,1748676574709,-430.30635478,0.00016438,2]
[363327611,1748676574756,-430.0,0.00016438,2]
[363327612,1748676574802,-430.0,0.00016438,2]
[363327613,1748676574847,-430.0,0.00016438,2]
[363327614,1748676574892,-562.39766593,0.00016438,2]
[363327615,1748676574938,-4949.7,0.00016438,2]
[363327616,1748676574984,-430.0,0.00016438,2]
[363327617,1748676575027,-430.0,0.00016438,2]
[363327618,1748676575071,-430.46656036,0.00016438,2]
[363327619,1748676575122,-430.0,0.00016438,2]
[363327620,1748676575169,-283.39942478,0.00016438,2]
[363327621,1748676575217,-456.21,0.00016438,2]
[363327622,1748676575263,-430.0,0.00016438,2]
[363327623,1748676575308,-430.0,0.00016438,2]
[363327624,1748676575353,-430.0,0.00016438,2]
[363327625,1748676575396,-430.0,0.00016438,2]
[363327626,1748676575443,-432.65682507,0.00016438,2]
[363327627,1748676575489,-440.67319923,0.00016438,2]
[363327628,1748676575536,-545.37614545,0.00016438,2]
[363327629,1748676575584,-430.0,0.00016438,2]
[363327630,1748676575637,-505.33705432,0.00016438,2]
[363327631,1748676575685,-185.58132125,0.00016438,2]
[363327632,1748676575735,-430.0,0.00016438,2]
[363327633,1748676575786,-430.0,0.00016438,2]
[363327634,1748676575833,-430.0,0.00016438,2]
[363327635,1748676575883,-439.26201719,0.00016438,2]
[363327636,1748676575928,-430.0,0.00016438,2]
[363327637,1748676576093,-889.6,0.00016438,2]
[363327638,1748676576150,-430.46226379,0.00016438,2]
[363327639,1748676576201,-613.13,0.00016438,2]
[363327640,1748676576248,-470.93205882,0.00016438,2]
[363327641,1748676576297,-430.0,0.00016438,2]
[363327642,1748676576347,-430.0,0.00016438,2]
[363327643,1748676576399,-430.0,0.00016438,2]
[363327644,1748676576450,-548.65,0.00016438,2]
[363327645,1748676576499,-357.51626057,0.00016438,2]
[363327646,1748676576548,-430.0,0.00016438,2]
[363327647,1748676576598,-430.0,0.00016438,2]
[363327648,1748676576648,-430.0,0.00016438,2]
[363327649,1748676576698,-430.0,0.00016438,2]
[363327650,1748676576744,-430.0,0.00016438,2]
[363327651,1748676576793,-430.0,0.00016438,2]
[363327652,1748676576838,-278.17673541,0.00016438,2]
[363327653,1748676576887,-430.0,0.00016438,2]
[363327654,1748676576935,-520.34,0.00016438,2]
[363327655,1748676576982,-563.5297827,0.00016438,2]
[363327656,1748676577030,-160.0,0.00016711,2]
[363327657,1748676577083,-381.52906177,0.00016712,2]
[363327658,1748676577132,-435.58312469,0.00016712,2]
[363327659,1748676577185,-430.0,0.00016712,2]
[363327660,1748676577233,-430.0,0.00016712,2]
[363327661,1748676577281,-430.0,0.00016712,2]
[363327662,1748676577329,-514.57626875,0.00016712,2]
[363327663,1748676577377,-430.0,0.00016712,2]
[363327664,1748676577426,-430.0,0.00016712,2]
[363327665,1748676577475,-430.0,0.00016712,2]
[363327666,1748676577521,-430.0,0.00016712,2]
[363327667,1748676577566,-430.0,0.00016712,2]
[363327668,1748676577610,-430.0,0.00016712,2]
[363327669,1748676577657,-430.0,0.00016712,2]
[363327670,1748676577703,-430.0,0.00016712,2]
[363327671,1748676577750,-430.0,0.00016712,2]